Cogmind - Beta 11.1 --- EXPLORER MODE // 2022.09.03 @ 19:13:59 Player: BillyNate Result: Destroyed by Y-54 Guardian with Gatling Laser Performance ------------- Evolutions (4) 2000 Regions Visited (6) 1200 Robots Destroyed (7) 35 Value Destroyed (321) 321 Prototype IDs (9) 180 Alien Tech Used (0) 0 Bonus (970) 970 TOTAL SCORE: 4706 Bonus ------- Pacifist 470 Entered DSFs 500 Cogmind --------- Core Integrity 0/850 Matter 300/300 Energy 99/100 System Corruption 2% Temperature Cool (6) Movement Core (50) Location -6/Factory Parts ------- > --- POWER (1) -------- (None) > --- PROPULSION (2) --- (None) > --- UTILITY (11) ----- Advanced Targeting Computer Advanced Targeting Computer System Shield > --- WEAPON (2) ------- (None) > --- INVENTORY (5) ---- Improved Targeting Computer Advanced Targeting Computer Peak State ------------ > --- POWER ------------ (None) > --- PROPULSION ------- (None) > --- UTILITY ---------- Advanced Targeting Computer Advanced Targeting Computer Advanced Targeting Computer System Shield System Shield System Shield System Shield > --- WEAPON ----------- Heavy Assault Rifle Heavy Assault Rifle > --- INVENTORY -------- Advanced Targeting Computer Light Armor Plating [Rating: 25] Favorites ----------- Power None Propulsion None Utility System Shield Device Structural Scanner Processor Advanced Targeting Computer Hackware System Shield Protection Light Armor Plating Weapon Heavy Assault Rifle Energy Gun EM Pulse Gun Ballistic Gun Heavy Assault Rifle Build | -11 -10 -9 -8 -7 -7 -6 ------- Run | Scr Mat Mat Mat Fac DSF Fac Slots Evolved 9 | . 1 2 2 2 . 2 Power . | . . . . . . . Propulsion . | . . . . . . . Utility 9 | . 1 2 2 2 . 2 Weapon . | . . . . . . . Parts Attached 14 | 1 1 5 5 1 . 1 Power . | . . . . . . . Engine . | . . . . . . . Core . | . . . . . . . Reactor . | . . . . . . . Propulsion . | . . . . . . . Treads . | . . . . . . . Leg . | . . . . . . . Wheel . | . . . . . . . Hover . | . . . . . . . Flight . | . . . . . . . Utility 11 | 1 1 5 2 1 . 1 Device 1 | 1 . . . . . . Storage . | . . . . . . . Processor 4 | . 1 1 2 . . . Hackware 4 | . . 4 . . . . Protection 2 | . . . . 1 . 1 Artifact . | . . . . . . . Weapon 3 | . . . 3 . . . Energy Gun 1 | . . . 1 . . . Energy Cannon . | . . . . . . . Ballistic Gun 2 | . . . 2 . . . Ballistic Cannon . | . . . . . . . Launcher . | . . . . . . . Special Weapon . | . . . . . . . Impact Weapon . | . . . . . . . Slashing Weapon . | . . . . . . . Piercing Weapon . | . . . . . . . Special Melee Weapon . | . . . . . . . Unidentified Prototypes . | . . . . . . . Parts Lost 11 | . . 2 3 . . 6 Power . | . . . . . . . Propulsion . | . . . . . . . Utility 8 | . . 2 . . . 6 Weapon 3 | . . . 3 . . . Highest Loss Streak 5 | . . 2 2 . . 5 To Critical Strikes . | . . . . . . . Average Slot Usage (%) 46 | . 17 23 67 57 57 38 Device 2 | . 12 5 . . . . Processor 17 | . 5 7 24 21 21 16 Hackware 21 | . . 11 33 28 28 18 Protection 2 | . . . . 7 7 3 Ballistic Gun 2 | . . . 8 . . . Naked Turns 24 | . . 24 . . . . Heaviest Build 3 | 1 1 1 3 3 3 3 Greatest Support 3 | 3 3 3 3 3 3 3 Greatest Overweight (x) . | . . . . . . . Average Overweight (x) . | . . . . . . . Largest Inventory Capacity 5 | 5 5 5 5 5 5 5 Average Capacity 5 | 5 5 5 5 5 5 5 Most Carried 5 | 3 2 5 4 3 3 3 Average Carried 2 | 1 1 2 1 2 3 2 Final Capacity 5 | 5 5 5 5 5 5 5 Final Carried 4 | 2 1 4 2 3 3 2 Class Distribution -------------------- 67% | Wizard-Mutant 32% | Hacker-Mutant Dominant Class ---------------- Hacker-Mutant | -10/Materials Hacker-Mutant | -9/Materials Wizard-Mutant | -8/Materials Wizard-Mutant | -7/Factory Wizard-Mutant | -7/DSF Wizard-Mutant | -6/Factory Resources | -11 -10 -9 -8 -7 -7 -6 ----------- Run | Scr Mat Mat Mat Fac DSF Fac Matter Collected 394 | 80 . . 284 30 . . Remotely . | . . . . . . . Salvage Created 363 | . . . 363 . . . Parts 22 | . . . 22 . . . Haulers Intercepted . | . . . . . . . Recyclers Shooed . | . . . . . . . Parts Field Recycled . | . . . . . . . Retrieved Matter . | . . . . . . . Parts Self-Destructed . | . . . . . . . Prevented . | . . . . . . . Kills | -11 -10 -9 -8 -7 -7 -6 ------- Run | Scr Mat Mat Mat Fac DSF Fac Combat Hostiles Destroyed 7 | . . . 7 . . . Guns 7 | . . . 7 . . . Classes Destroyed 2 | . . . 2 . . . Grunt 3 | . . . 3 . . . Sentry 4 | . . . 4 . . . Best Kill Streak 3 | . . . 3 . . . Combat Bots Only 3 | . . . 3 . . . Max Kills in Single Turn 1 | . . . 1 . . . Gunslinging . | . . . . . . . Exploded . | . . . . . . . Melee . | . . . . . . . Uniques/NPCs Destroyed . | . . . . . . . Combat | -11 -10 -9 -8 -7 -7 -6 -------- Run | Scr Mat Mat Mat Fac DSF Fac Damage Taken 1895 | . 99 91 501 . 37 1167 Core 1257 | . 80 73 249 . . 855 Absorbed by Shields . | . . . . . . . Core Remaining (%) 80 | 100 68 81 54 . 100 . Volleys Fired 35 | . . . 35 . . . Largest 2 | . . . 2 . . . Hottest 46 | . . . 46 . . . Shots Fired 52 | . . . 52 . . . Gun 52 | . . . 52 . . . Cannon . | . . . . . . . Launcher . | . . . . . . . Special . | . . . . . . . Kinetic 45 | . . . 45 . . . Thermal . | . . . . . . . Explosive . | . . . . . . . Electromagnetic 7 | . . . 7 . . . Robot Hit Streak 30 | . . . 30 . . . Robot Miss Streak 1 | . . . 1 . . . Penetration Max . | . . . . . . . Secondary Targets 1 | . . . 1 . . . Max Gunslinging Chain 1 | . . . 1 . . . Shots Hit Robots 49 | . . . 49 . . . Core Hits 15 | . . . 15 . . . Critical Kills . | . . . . . . . Critical Parts Destroyed . | . . . . . . . Critical Strikes . | . . . . . . . Melee Attacks . | . . . . . . . Impact . | . . . . . . . Slashing . | . . . . . . . Piercing . | . . . . . . . Sneak Attacks . | . . . . . . . Combat Hostiles . | . . . . . . . Follow-up Attacks . | . . . . . . . Damage Inflicted 785 | . 18 44 721 . . 2 Guns 710 | . . . 710 . . . Cannons . | . . . . . . . Explosions . | . . . . . . . Melee . | . . . . . . . Ramming 75 | . 18 44 11 . . 2 Kinetic 635 | . . . 635 . . . Thermal . | . . . . . . . Explosive . | . . . . . . . Electromagnetic 75 | . . . 75 . . . Impact . | . . . . . . . Slashing . | . . . . . . . Piercing . | . . . . . . . Highest Corruption 6 | . . 6 . . . 2 Average Corruption 3 | . . 5 . . . 2 Corruption Purged . | . . . . . . . Corruption Blocked . | . . . . . . . Effects 1 | . . 1 . . . . Message Errors 1 | . . 1 . . . . Overload Shots . | . . . . . . . Overflow Damage . | . . . . . . . Projectiles . | . . . . . . . Explosions . | . . . . . . . Melee . | . . . . . . . Knockbacks . | . . . . . . . Impact . | . . . . . . . Kinetic . | . . . . . . . Secondary . | . . . . . . . Self-Inflicted Damage 35 | . 8 21 5 . . 1 Shots . | . . . . . . . Rammed 15 | . 4 6 4 . . 1 Targets Rammed 15 | . 4 6 4 . . 1 Kicked . | . . . . . . . Crushed . | . . . . . . . Highest Temperature 9 | . . . 9 . . . Average Temperature 8 | . . . 8 . . . Received Heat Transfer 765 | . 69 42 297 . . 357 Siege Activations . | . . . . . . . Robots Corrupted . | . . . . . . . Combat Hostiles . | . . . . . . . Parts Fried . | . . . . . . . Impact Corruptions . | . . . . . . . Robots Melted . | . . . . . . . Combat Hostiles . | . . . . . . . Parts Melted . | . . . . . . . Heat Transferred . | . . . . . . . Parts Sabotaged . | . . . . . . . Parts Stolen . | . . . . . . . Parts Stripped . | . . . . . . . Power Chain Reactions . | . . . . . . . Missiles Intercepted . | . . . . . . . Alert | -11 -10 -9 -8 -7 -7 -6 ------- Run | Scr Mat Mat Mat Fac DSF Fac Peak Influence 356 | . 72 52 356 117 78 144 Initial 117 | . . 21 15 117 63 30 Average 92 | . 33 28 177 117 64 50 Maximum Alert Level 1 | . . . 1 . . . Low Security (%) 88 | 100 100 100 60 100 100 100 Level 1 11 | . . . 39 . . . Level 2 . | . . . . . . . Level 3 . | . . . . . . . Level 4 . | . . . . . . . Level 5 . | . . . . . . . High Security . | . . . . . . . Max Security . | . . . . . . . Squads Dispatched 5 | . . . 2 . . 3 Investigation . | . . . . . . . Extermination . | . . . . . . . Reinforcement 5 | . . . 2 . . 3 Assault . | . . . . . . . Garrison . | . . . . . . . Intercept . | . . . . . . . Searches Triggered . | . . . . . . . Construction Impeded . | . . . . . . . Haulers Reinforced . | . . . . . . . Active Scanning Responses . | . . . . . . . Cargo Convoy Interrupts . | . . . . . . . Stealth | -11 -10 -9 -8 -7 -7 -6 --------- Run | Scr Mat Mat Mat Fac DSF Fac Distress Signals 2 | . 2 . . . . . Communications Jammed . | . . . . . . . Distress Signals . | . . . . . . . Times Spotted 67 | . 7 9 24 . 1 26 Peak Tracking Total 15 | . 7 7 9 . 1 15 Tactical Retreats 9 | . 1 1 2 . 1 4 Traps | -11 -10 -9 -8 -7 -7 -6 ------- Run | Scr Mat Mat Mat Fac DSF Fac Traps Triggered . | . . . . . . . Indirectly . | . . . . . . . Trap Hack Attempts . | . . . . . . . Triggered . | . . . . . . . Disarmed . | . . . . . . . Reprogrammed 1 | . . 1 . . . . Reused . | . . . . . . . Traps Extracted . | . . . . . . . Installed . | . . . . . . . Triggered . | . . . . . . . Machines | -11 -10 -9 -8 -7 -7 -6 ---------- Run | Scr Mat Mat Mat Fac DSF Fac Machines Disabled . | . . . . . . . Max in Single Turn . | . . . . . . . Machines Sabotaged . | . . . . . . . Garrisons Compromised . | . . . . . . . Overloaded Fab Kills . | . . . . . . . Hacking | -11 -10 -9 -8 -7 -7 -6 --------- Run | Scr Mat Mat Mat Fac DSF Fac Machines Accessed 12 | . 4 2 1 2 . 3 Terminals 11 | . 4 2 1 1 . 3 Fabricators 1 | . . . . 1 . . Repair Stations . | . . . . . . . Recycling Units . | . . . . . . . Scanalyzers . | . . . . . . . Garrison Access . | . . . . . . . Total Hacks 33 | . 10 8 1 2 . 12 Successful 24 | . 7 6 1 1 . 9 Failed 9 | . 3 2 . 1 . 3 Catastrophic 1 | . . . . . . 1 Database Lockouts . | . . . . . . . Manual 10 | . 4 2 1 . . 3 Terminals 32 | . 10 8 1 1 . 12 Fabricators 1 | . . . . 1 . . Repair Stations . | . . . . . . . Recycling Units . | . . . . . . . Scanalyzers . | . . . . . . . Garrison Access . | . . . . . . . Terminal Hacks 24 | . 7 6 1 1 . 9 Prototype ID Bank 4 | . 3 . . . . 1 Open DSF 2 | . . . . 1 . 1 Level Access Points 4 | . 1 1 1 . . 1 Alert Level 1 | . . 1 . . . . Unreport Threat 4 | . . . . . . 4 Locate Traps 2 | . 1 1 . . . . Disarm Traps 1 | . . 1 . . . . Reprogram Traps 2 | . . 2 . . . . Patrol Status 2 | . 1 . . . . 1 Zone Layout 2 | . 1 . . . . 1 Fabricator Hacks . | . . . . . . . Repair Station Hacks . | . . . . . . . Recycling Unit Hacks . | . . . . . . . Scanalyzer . | . . . . . . . Garrison Access Hacks . | . . . . . . . Unauthorized Hacks . | . . . . . . . Terminals . | . . . . . . . Fabricators . | . . . . . . . Repair Stations . | . . . . . . . Recycling Units . | . . . . . . . Scanalyzers . | . . . . . . . Garrison Access . | . . . . . . . Data Cores Recovered . | . . . . . . . Used . | . . . . . . . Hacking Detections 5 | . 3 1 . . . 1 Full Trace Events . | . . . . . . . Feedback Events . | . . . . . . . Feedback Blocked . | . . . . . . . Robot Schematics Acquired . | . . . . . . . Robots Built . | . . . . . . . Authchips . | . . . . . . . Time . | . . . . . . . Total Robot Build Rating . | . . . . . . . Part Schematics Acquired . | . . . . . . . Parts Built . | . . . . . . . Authchips . | . . . . . . . Time . | . . . . . . . Total Part Build Rating . | . . . . . . . Parts Repaired . | . . . . . . . Time . | . . . . . . . Parts Recycled . | . . . . . . . Recycled Matter . | . . . . . . . Retrieved Matter . | . . . . . . . Retrieved Components . | . . . . . . . Parts Scanalyzed . | . . . . . . . Part Schematics Acquired . | . . . . . . . Parts Damaged . | . . . . . . . Bothacking | -11 -10 -9 -8 -7 -7 -6 ------------ Run | Scr Mat Mat Mat Fac DSF Fac Used RIF Installer . | . . . . . . . Robots Hacked . | . . . . . . . Non-combat . | . . . . . . . Combat . | . . . . . . . Robot Hacks Applied . | . . . . . . . Relay Couplers Released . | . . . . . . . Fabnet Peak Effective % . | . . . . . . . Robots Rewired . | . . . . . . . Allies Hacked . | . . . . . . . Hacks Repelled . | . . . . . . . Allies | -11 -10 -9 -8 -7 -7 -6 -------- Run | Scr Mat Mat Mat Fac DSF Fac Total Allies . | . . . . . . . Largest Group . | . . . . . . . Highest-Rated Group . | . . . . . . . Highest-Rated Ally . | . . . . . . . Total Orders . | . . . . . . . Ally Attacks . | . . . . . . . Total Damage . | . . . . . . . Kills . | . . . . . . . Allies Corrupted . | . . . . . . . Allies Melted . | . . . . . . . Intel | -11 -10 -9 -8 -7 -7 -6 ------- Run | Scr Mat Mat Mat Fac DSF Fac Robot Analysis Total . | . . . . . . . Derelict Logs Recovered . | . . . . . . . Drone Launches . | . . . . . . . Drone Recoveries . | . . . . . . . Exploration | -11 -10 -9 -8 -7 -7 -6 ------------- Run | Scr Mat Mat Mat Fac DSF Fac Turns Passed 676 | 19 76 101 196 110 34 140 Spaces Moved 1063 | 31 141 167 166 214 69 275 Core 1063 | 31 141 167 166 214 69 275 Treads . | . . . . . . . Legs . | . . . . . . . Wheels . | . . . . . . . Hover . | . . . . . . . Flight . | . . . . . . . Fastest Speed 50 | 50 50 50 50 50 50 50 Average Speed 50 | 50 50 50 50 50 50 50 Slowest Speed 50 | 50 50 50 50 50 50 50 Overloaded Moves . | . . . . . . . Propulsion Burnouts . | . . . . . . . Robots Hopped . | . . . . . . . Cave-ins Triggered . | . . . . . . . Exploration Rate (%) 26 | 3 33 28 34 10 63 13 Regions Visited 6 Branch Regions . Pre-discovered Areas . | . . . . . . . Known Exits Taken 5 | 1 1 1 1 1 . . Unknown Exits Taken . | . . . . . . . Scrap Searched . | . . . . . . . Spaces Dug . | . . . . . . . Terrain Destroyed . | . . . . . . . Melee . | . . . . . . . Projectile . | . . . . . . . AOE . | . . . . . . . Terrain Rammed . | . . . . . . . Walls Destroyed . | . . . . . . . Machines Disabled . | . . . . . . . Actions | -11 -10 -9 -8 -7 -7 -6 --------- Run | Scr Mat Mat Mat Fac DSF Fac Total 1148 | 34 145 182 226 216 68 277 Wait 14 | . . . 14 . . . Move 1057 | 30 140 166 165 213 68 275 Hop . | . . . . . . . Pick Up 13 | 3 . 5 3 2 . . Fast Attach 3 | . . 3 . . . . Attach 11 | 1 1 2 5 1 . 1 Detach . | . . . . . . . Swap . | . . . . . . . Drop . | . . . . . . . Fire 35 | . . . 35 . . . Melee . | . . . . . . . Ram 15 | . 4 6 4 . . 1 Kick . | . . . . . . . Crush . | . . . . . . . Escape Stasis . | . . . . . . . Rewire . | . . . . . . . Trap . | . . . . . . . Miscellaneous . | . . . . . . . Route ------- -11/Scrapyard -10/Materials (discovered 3 exits: *Mat x3) -9/Materials (discovered 3 exits: *Mat x3) -8/Materials (discovered 3 exits: *Fac x3) -7/Factory (discovered 2 exits: *Low / DSF) -7/DSF -6/Factory (discovered 4 exits: Fac x4) History --------- Turn | Location | Event 14 | -11/Scrapyard | Identified exit to Materials 14 | -11/Scrapyard | Discovered exit to Materials (range 15) 20 | -11/Scrapyard | Entered Materials 20 | -10/Materials | Evolved 1 slot: Utility x1 42 | -10/Materials | Identified exit to Materials 96 | -10/Materials | Entered another Materials area 96 | -9/Materials | Evolved 2 slots: Utility x2 153 | -9/Materials | Identified exit to Materials 197 | -9/Materials | Entered another Materials area 197 | -8/Materials | Evolved 2 slots: Utility x2 376 | -8/Materials | Identified exit to Factory 393 | -8/Materials | Entered Factory 393 | -7/Factory | Evolved 2 slots: Utility x2 471 | -7/Factory | Build established: Wizard-Mutant 474 | -7/Factory | Identified exit to Lower Caves 474 | -7/Factory | Discovered exit to Lower Caves (range 8) 503 | -7/Factory | Identified exit to DSF 503 | -7/Factory | Entered DSF 530 | -7/DSF | Identified exit to Factory 530 | -7/DSF | Discovered exit to Factory (range 15) 534 | -7/DSF | Additional patrols routed to DSF 537 | -7/DSF | Entered Factory 537 | -6/Factory | Evolved 2 slots: Utility x2 625 | -6/Factory | Core integrity fell below 50% 664 | -6/Factory | Identified exit to Factory 667 | -6/Factory | Lost 5 parts (5u) 667 | -6/Factory | Core integrity fell below 20% 677 | -6/Factory | Destroyed by Y-54 Guardian with Gatling Laser Last Messages --------------- ALERT: Hostiles spotted, dispatching reinforcements to Terminal F002. O-24 Administrator locks terminal. Connecting with Terminal... >>Alert(Purge) Purged threat record, alert level lowered. >>Alert(Purge) No threats on record. >>Layout(Zone) Retrieving Zone 3T layout... Downloaded map data. >>Access(Main) Found 4 level access points to Factory: (191,43) (192,174) (69,4) (61,4) Map updated. Terminal disabled. Penetrated by Slug. ALERT: Hostiles spotted, dispatching reinforcements to Terminal F008. Map ----- +----------------------------------------------------+ | ????????????????????? #???????????????????????? | | #???????????????????? #???????????????????????? | | #??# """" #######???# # """???????????????????? | | #??# """" #?????????# # "T ???????????????????? | | #??# """" #?????????# # """???????????????????? | | #??# #?????????# + ""???????????????????? | | #??# #?????????# # ???????????????????? | | #??# #???????### #####???????????????????? | | ]#??#####+########## #?????????????????????? | | ##### #?????????????????????? | | #?????????????????????? | | #?????????????????????? | | ###???????????????????? | | # ???????????????????? | | ########+#+######### # "???????????????????? | | / != #??### ### "???????????????????? | | # != #????# #?# "???????????????????? | | # ! """ """ T #????# #?# "???????????????????? | | # """ """ " #????# #?# ???????????????????? | | # """ """ #????# #?# "???????????????????? | | # #????# #?# "???????????????????? | | # """ """ """ #????# #?# "???????????????????? | | # """ """ """ #????# #?# "???????????????????? | | # """ """ """ #????#A #?# ???????????????????? | | # *#???## ### ???????????????????? | | ###### ##########???# @####???????????????????? | | ######### ######### Y ???????????????????? | | ???????????????????? | | ######### ###### ## ?????????????????? | | #???????## ##????# ## #######????????????????? | | ########## #?????# #### ###??????????????????????? | | # # #?????# #??# #??###???????????????????? | | # # ##+####### #??# #??# ???????????????????? | | ??????????????????????# #????????????????????????? | | ??????????????????????# ?????????????????????????? | | ??????????????????????# ?????????????????????????? | | ??????????????????????# ?????????????????????????? | | ??????????????????????? ?????????????????????????? | | ?????????????????????????????????????????????????? | | ?????????????????????????????????????????????????? | | ?????????????????????????????????????????????????? | | ?????????????????????????????????????????????????? | | ?????????????????????????????????????????????????? | | ?????????????????????????????????????????????????? | | ?????????????????????????????????????????????????? | | ?????????????????????????????????????????????????? | | ?????????????????????????????????????????????????? | | ?????????????????????????????????????????????????? | | ?????????????????????????????????????????????????? | | ?????????????????????????????????????????????????? | +----------------------------------------------------+ Best States ------------- Heat Dissipation 37 Energy Generation 5 Energy Capacity 100 Matter Stores 300 Matter Capacity 300 Sight Range 16 Terrain Scan Density 10 Armor Coverage 150 Resistance: KI 35 Resistance: TH 35 Resistance: EX 35 Resistance: EM 35 Resistance: I 35 Resistance: S 35 Resistance: P 35 Evasion (%) 50 Targeting Accuracy 24 Offensive Hacking 20 Defensive Hacking 40 Item Schematics ----------------- None Robot Schematics ------------------ None Fabricated ------------ Nothing Alien Tech Used ----------------- None Achievements -------------- None Challenges ------------ None Game ------ Seed BeamSubatomicTriangulator Manual? 0 Play Time 00:26:30 Cumulative 113.0 hours Start 2022.09.03 @ 18:50:34 End 2022.09.03 @ 19:13:59 Sessions 1 Manual Loads 0 Difficulty Explorer Special Mode None Game No. 69 Rogue 23 Adventurer 9 Explorer 37 Win Type - Total 6 Types 5/0/0/1/0/0/0/0/0 Lore% 49 Gallery% 59 Achievement% 48 Wizard Run 0 Options --------- ASCII 0 Keyboard 0 Movement Mouse Keybinds 0 Fullscreen 1 Font 12/Smallcaps Map View 83x54 Tactical HUD 0 Map Filters NONE Filters NONE Steam 1 RUN: 7e71e26b-d48f-4d21-99cd-a4bc5ffe228b